bitfinex/quotes_ETHUSD_20241103
["timestamp","ask_amount","ask_price","bid_price","bid_amount"]
[1730660325034,4.70645783,2426.7,2426.2,4.12156]
[1730660325197,0.58553783,2426.7,2426.2,4.13156]
[1730660325404,0.58553783,2426.7,2426.3,4.12141]
[1730660325618,0.58553783,2426.7,2426.2,4.13156]
[1730660325802,0.58553783,2426.7,2426.3,4.1215]
[1730660326129,0.58553783,2426.7,2426.4,4.12129]
[1730660326326,0.91231826,2426.8,2426.5,4.12114]
[1730660326526,5.0025626,2427.0,2426.5,4.12114]
[1730660326841,5.0025626,2427.0,2426.3,4.1215]
[1730660326842,5.0025526,2427.0,2426.6,4.12098]
[1730660328663,4.12055,2426.9,2426.4,8.24252]
[1730660328805,4.12055,2426.9,2426.4,4.12122]
[1730660329006,5.0025526,2427.0,2426.4,4.13125]
[1730660329213,4.62085526,2426.9,2426.4,4.13125]
[1730660330044,4.62085526,2426.9,2426.5,4.12114]
[1730660330248,4.62085526,2426.9,2426.7,0.5]
[1730660330653,0.50025526,2426.9,2426.7,0.5]
[1730660330823,4.62075526,2426.9,2426.7,0.5]
[1730660331023,0.50025526,2426.9,2426.7,0.5]
[1730660332523,0.50025526,2426.9,2426.7,4.62082]
[1730660332717,0.8821526,2427.0,2426.7,4.62082]
[1730660332920,0.8821526,2427.0,2426.7,0.5]
[1730660333238,5.0024626,2427.0,2426.7,0.5]
[1730660333550,4.1800626,2427.0,2426.7,0.5]
[1730660333914,0.0597526,2427.0,2426.7,4.62079]
[1730660334116,0.0597526,2427.0,2426.7,4.63079]
[1730660334326,0.0597526,2427.0,2426.9,0.5]
[1730660336152,0.0597526,2427.0,2426.9,5.42568]
[1730660337063,0.0597526,2427.0,2426.9,8.51808679]
[1730660337363,0.0597526,2427.0,2426.9,8.43568]
[1730660338654,0.0597526,2427.0,2426.9,8.93568]
[1730660339213,0.0597526,2427.0,2426.9,9.49568]
[1730660339645,2.96,2427.7,2427.6,0.01]
[1730660339848,0.8055,2428.1,2427.6,0.01]
[1730660339849,2.96,2428.1,2427.6,0.01]
[1730660340011,2.96,2428.1,2427.9,4.11872]
[1730660340214,3.0197526,2428.2,2427.9,4.11869]
[1730660340448,3.0197526,2428.2,2428.0,4.11861]
[1730660340653,3.0197526,2428.2,2428.1,4.11844]
[1730660343688,3.0197526,2428.2,2428.1,4.2007995]
[1730660343843,3.0197526,2428.2,2428.1,5.0059995]
[1730660344241,3.0197526,2428.2,2428.1,8.47364]
[1730660344550,1.49271138,2428.2,2428.1,8.47364]
[1730660345067,4.1760726,2429.4,2428.7,4.12732]
[1730660345275,4.1760726,2429.4,2428.8,0.7736]
[1730660345276,0.88896086,2429.4,2428.8,0.7736]
[1730660345584,4.11659,2429.2,2428.8,0.7736]
[1730660345751,4.11641,2429.3,2429.0,0.01]
[1730660345997,4.1761626,2429.4,2429.0,0.01]
[1730660346383,4.1761626,2429.4,2429.2,0.01]
[1730660346384,0.0597526,2429.4,2429.2,0.01]
[1730660347259,0.0597526,2429.4,2429.0,0.02]
[1730660347458,4.11658,2429.2,2428.7,0.01]
[1730660347661,4.11692,2429.0,2428.7,0.01]
[1730660348074,4.61683326,2429.2,2428.7,0.01]
[1730660348566,4.11692,2429.0,2428.7,0.01]
[1730660349070,4.11714,2428.9,2428.6,0.01]
[1730660349393,4.1172,2428.9,2428.6,0.01]
[1730660349681,4.1172,2428.9,2428.5,0.7736]
[1730660349682,4.11734,2428.8,2428.5,0.01]
[1730660349979,8.23471,2428.8,2428.5,0.01]
[1730660350372,4.11734,2428.8,2428.5,0.01]
[1730660351138,4.11744,2428.7,2428.5,0.01]
[1730660351841,4.11759,2428.6,2428.5,0.01]
[1730660352039,4.11743,2428.7,2428.5,0.01]
[1730660352940,5.765822,2428.9,2428.5,0.01]
[1730660353172,5.765792,2428.9,2428.5,0.01]
[1730660353521,8.23499,2428.7,2428.5,0.01]
[1730660353637,8.23496,2428.7,2428.5,0.01]
[1730660353842,4.11744,2428.7,2428.5,0.01]
[1730660354091,4.11759,2428.6,2428.5,0.01]
[1730660354286,4.11744,2428.7,2428.5,0.01]
[1730660354993,8.23496,2428.7,2428.5,0.01]
[1730660355284,4.11763,2428.6,2428.4,0.01]
[1730660355484,4.11763,2428.6,2428.1,0.01]
[1730660355987,4.11803,2428.4,2428.1,0.01]
[1730660356202,4.11837,2428.2,2428.0,0.01]
[1730660356396,4.94325,2428.4,2428.0,0.01]
[1730660356397,4.94324,2428.4,2428.0,0.01]
[1730660356565,4.11811,2428.3,2428.0,0.01]
[1730660357159,0.8252,2428.4,2427.9,0.01]
[1730660357375,4.11845,2428.1,2427.9,0.01]
[1730660357898,4.11845,2428.1,2427.8,0.01]
[1730660358214,4.11845,2428.1,2427.7,0.01]
[1730660358215,4.11895,2427.8,2427.7,0.01]
[1730660358358,4.530445,2428.1,2427.7,0.01]
[1730660358563,4.1186,2428.1,2427.7,0.01]
[1730660358987,4.11792,2428.5,2427.7,0.01]
[1730660358988,4.118,2428.4,2427.7,0.01]
[1730660359170,4.118,2428.4,2428.0,0.7736]
[1730660359171,4.11802,2428.4,2428.0,0.7736]
[1730660359605,0.7945,2428.7,2428.1,0.09236858]
[1730660359802,4.91153,2429.0,2428.6,0.01]
[1730660359974,6.1833257,2429.0,2428.6,0.01]
[1730660360176,4.1171,2428.9,2428.6,0.02]
[1730660360601,4.11778,2428.5,2428.3,0.7987]
[1730660360764,4.11806,2428.4,2428.2,0.01]
[1730660360962,4.11806,2428.4,2428.1,0.01]
[1730660361162,4.11806,2428.4,2427.8,0.01]
[1730660361163,4.11844,2428.1,2427.8,0.01]
[1730660361400,4.529756,2428.4,2427.7,0.01]
[1730660361401,4.11878,2427.9,2427.7,0.01]
[1730660361600,4.11898,2427.8,2427.6,0.01]
[1730660361816,4.11906,2427.8,2427.6,0.01]
[1730660362105,4.1188,2427.9,2427.6,0.01]
[1730660362265,4.11871,2428.0,2427.6,0.02]
[1730660363570,4.11912,2427.7,2427.6,0.01]
[1730660363795,4.11903,2427.8,2427.6,0.01]
[1730660364405,4.11893,2427.9,2427.6,0.02]
[1730660364805,4.11878,2427.9,2427.6,0.02]
[1730660365282,4.11829,2428.2,2427.8,0.01]
[1730660365615,4.11829,2428.2,2427.8,0.09236966]
[1730660365775,4.11829,2428.2,2427.8,0.02]
[1730660366176,4.11829,2428.2,2427.8,0.10236967]
[1730660366376,4.11844,2428.1,2427.8,0.10236967]
[1730660366628,4.11844,2428.1,2427.8,0.09236968]
[1730660366787,4.11861,2428.0,2427.8,0.01]
[1730660366975,4.11861,2428.0,2427.9,0.01]
[1730660367178,4.11861,2428.0,2427.8,0.01]
[1730660367372,4.11878,2427.9,2427.8,0.01]
[1730660369388,4.119,2427.8,2427.6,0.02]
[1730660370109,4.119,2427.8,2427.4,0.8187]
[1730660370110,4.942778,2427.8,2427.4,0.8187]
[1730660370281,4.11928,2427.7,2427.4,0.8187]
[1730660370481,4.11932,2427.6,2427.4,0.02]
[1730660370682,4.11932,2427.6,2427.4,0.01]
[1730660370975,4.11946,2427.5,2427.4,0.02]
[1730660371376,8.23842,2427.7,2427.4,0.02]
[1730660371619,4.11931,2427.6,2427.4,0.02]
[1730660373234,4.11888,2427.9,2427.6,0.01]
[1730660373565,4.1191,2427.8,2427.6,0.02]
[1730660373834,0.74951887,2428.0,2427.4,0.02]
[1730660374135,4.11933,2427.6,2427.4,0.02]
[1730660375498,4.11946,2427.5,2427.4,0.01]
[1730660375843,4.11909,2427.8,2427.4,0.02]
[1730660376156,4.11923,2427.7,2427.4,0.02]
[1730660376508,4.11929,2427.6,2427.4,0.02]
[1730660377539,4.11946,2427.5,2427.4,0.02]
[1730660377894,4.11929,2427.6,2427.4,0.02]
[1730660378714,8.23872,2427.6,2427.4,0.02]
[1730660378919,4.11929,2427.6,2427.4,0.02]
[1730660379121,4.11946,2427.5,2427.4,0.02]
[1730660380619,4.11946,2427.5,2427.4,0.01]
[1730660380827,4.11946,2427.5,2427.4,0.02]
[1730660381318,4.11965,2427.4,2427.2,0.02]
[1730660381718,4.11963,2427.4,2427.2,0.01]
[1730660381927,4.1198,2427.3,2427.2,0.01]
[1730660382134,4.12011,2427.2,2427.0,0.0602474]
[1730660382518,8.24024,2427.2,2427.0,0.0602474]
[1730660383057,4.12011,2427.2,2427.0,0.0602474]
[1730660383421,8.24023,2427.2,2427.0,0.0502474]
[1730660383621,8.24023,2427.2,2427.0,0.0602474]
[1730660383930,8.24019,2427.2,2427.0,0.0602474]
[1730660384239,4.12014,2427.1,2427.0,0.0602474]
[1730660384433,4.12008,2427.2,2427.0,0.0602474]
[1730660384645,8.24015,2427.2,2427.0,0.0602474]
[1730660385358,4.12007,2427.2,2427.0,0.0602474]
[1730660385568,4.12007,2427.2,2427.0,0.0402474]
[1730660385569,4.532077,2427.2,2427.0,0.0402474]
[1730660385723,4.12014,2427.1,2427.0,0.0402474]
[1730660388763,5.283577,2427.2,2427.0,0.0402474]
[1730660389433,4.12014,2427.1,2427.0,0.0402474]
[1730660392649,5.0605117,2427.1,2427.0,0.0402474]
[1730660400291,5.0605117,2427.1,2427.0,0.0231874]
[1730660400585,11.24321976,2427.1,2427.0,0.0231874]
[1730660400882,12.59471976,2427.1,2427.0,0.0231874]
[1730660401243,12.59471976,2427.1,2427.0,0.5231874]
[1730660401445,12.59471976,2427.1,2427.0,0.16349606]
[1730660401895,3.8015,2427.0,2426.0,0.01]
[1730660402190,4.12218,2425.9,2425.6,0.8019]
[1730660402356,4.12198,2426.1,2425.6,0.8019]
[1730660402357,4.12197,2426.1,2425.6,0.8019]
[1730660402576,4.12212,2426.0,2425.6,0.8019]
[1730660403170,4.12197,2426.1,2425.6,4.92458]
[1730660403394,8.12853944,2426.3,2425.8,0.01]
[1730660403696,0.02271138,2426.3,2426.2,4.14167]
[1730660403902,0.02271138,2426.3,2426.2,4.92357]
[1730660405113,0.02271138,2426.3,2426.2,0.8019]
[1730660405264,0.02271138,2426.3,2426.2,4.92357]
[1730660407700,0.02271138,2426.3,2426.2,5.00598629]
[1730660407878,0.02271138,2426.3,2426.2,4.92357]
[1730660409005,0.02271138,2426.3,2426.2,4.13167]
[1730660411215,0.02271138,2426.3,2426.2,4.22409768]
[1730660411712,0.02271138,2426.3,2426.2,4.93487]
[1730660412567,0.02271138,2426.3,2426.2,0.8132]
[1730660412767,0.02271138,2426.3,2426.2,0.02]
[1730660413306,0.02271138,2426.3,2426.2,0.01223498]
[1730660413513,4.12175,2426.2,2425.9,0.5]
[1730660413670,0.7557,2426.2,2425.9,0.5]
[1730660416523,0.02271138,2426.3,2425.9,4.62217]
[1730660416673,0.02271138,2426.3,2426.0,4.12415498]
[1730660417024,0.02271138,2426.3,2426.1,0.01]
[1730660417734,0.02271138,2426.3,2426.2,0.00223498]
[1730660417939,0.02271138,2426.3,2426.2,4.91710498]
[1730660418147,0.02271138,2426.3,2426.2,4.99952535]
[1730660418295,0.02271138,2426.3,2426.2,4.91710498]
[1730660418993,0.02271138,2426.3,2426.2,7.9995224]
[1730660419191,0.02271138,2426.3,2426.2,8.46710498]
[1730660422945,3.18270806,2427.5,2427.2,0.01]
[1730660423231,3.18270806,2427.5,2427.3,0.00223498]
[1730660423232,1.86542081,2427.5,2427.3,0.00223498]
[1730660423434,1.47,2427.5,2427.3,4.12202498]
[1730660423597,1.47,2427.5,2427.4,0.01]
[1730660424108,1.47,2427.7,2427.4,4.12963]
[1730660424310,2.2415,2427.9,2427.6,0.00223498]
[1730660424647,2.2415,2427.9,2427.7,0.01]
[1730660424648,1.47,2427.9,2427.7,0.01]
[1730660424797,1.47,2428.0,2427.7,0.01]
[1730660425015,1.47,2428.0,2427.9,0.01]
[1730660425214,1.47,2428.0,2427.9,4.12878]
[1730660425464,3.95420806,2428.4,2428.0,4.12071498]
[1730660425465,2.2415,2428.4,2428.0,4.12071498]
[1730660425609,1.47,2428.4,2428.1,4.12836]
[1730660425813,1.47,2428.4,2428.3,0.01223498]
[1730660426350,5.28862006,2428.4,2427.9,0.01223498]
[1730660426550,4.11825,2428.3,2427.9,0.01223498]
[1730660427056,5.28862006,2428.4,2428.1,0.00223498]
[1730660427859,2.105912,2428.4,2428.1,0.00223498]
[1730660428418,2.105912,2428.4,2428.3,0.00223498]
[1730660428419,1.47,2428.4,2428.3,0.00223498]
[1730660431069,2.2415,2428.6,2428.3,0.00223498]
[1730660433047,6.3541,2428.6,2428.3,0.00223498]
[1730660433738,6.1041,2428.6,2428.3,0.00223498]
[1730660434868,4.11785,2428.5,2428.2,0.01]
[1730660435070,4.11812,2428.3,2428.0,0.01]
[1730660435563,4.11812,2428.3,2427.9,4.12100498]
[1730660435747,4.11812,2428.3,2428.0,0.01]
[1730660436767,4.11812,2428.3,2427.7,4.11902]
[1730660436768,4.11812,2428.3,2427.8,0.01]
[1730660436937,1.47,2428.0,2427.8,0.01]
[1730660437465,1.47,2428.0,2427.7,0.00223498]
[1730660437672,5.58862,2428.0,2427.8,0.01]
[1730660438566,1.47,2428.0,2427.8,0.01]
[1730660438964,1.47,2428.0,2427.6,0.01]
[1730660438965,6.638645,2428.0,2427.6,0.01]
[1730660439162,6.638645,2428.0,2427.8,0.01]
[1730660439954,6.638645,2428.0,2427.6,4.12928]
[1730660440187,6.638645,2428.0,2427.8,0.01]
[1730660441087,1.47,2428.0,2427.9,4.94041498]
[1730660442748,1.47,2428.0,2427.9,5.02277851]
[1730660442950,1.47,2428.6,2428.3,0.01]
[1730660443143,1.47,2428.6,2428.4,4.11792]
[1730660443367,1.47,2428.7,2428.5,0.83163498]
[1730660443575,4.90942,2429.0,2428.5,4.94938498]
[1730660443743,4.90942,2429.0,2428.5,0.01223498]
[1730660443744,4.11719,2428.9,2428.5,0.01223498]
[1730660444486,4.11714,2428.9,2428.5,0.01223498]
[1730660446182,8.23435,2428.9,2428.5,0.01223498]
[1730660446359,4.11714,2428.9,2428.5,0.01223498]
[1730660446882,4.11727,2428.8,2428.5,0.01223498]
[1730660448556,1.47,2428.6,2428.5,0.01223498]
[1730660448761,1.47,2428.8,2428.5,0.01223498]
[1730660449389,5.58727,2428.8,2428.5,0.01223498]
[1730660449702,1.47,2428.8,2428.5,0.01223498]
[1730660451052,1.47,2428.8,2428.6,0.8194]
[1730660451657,1.47,2428.8,2428.5,0.01223498]
[1730660452649,1.47,2428.8,2428.5,4.12997498]
[1730660453191,1.47,2428.8,2428.5,0.01223498]
[1730660453565,1.47,2428.8,2428.5,4.12998498]
[1730660453966,1.47,2428.9,2428.8,4.12725]
[1730660454304,1.47,2428.9,2428.8,4.20958725]
[1730660454461,1.47,2428.9,2428.8,4.12725]
[1730660455974,1.47,2429.3,2428.8,4.12725]
[1730660456177,1.47,2429.3,2428.9,0.00223498]
[1730660456178,2.00334526,2429.3,2428.9,0.00223498]
[1730660456374,2.00334526,2429.3,2428.8,0.01]
[1730660456375,4.9204,2429.2,2428.8,0.01]
[1730660456671,0.8037,2429.2,2428.8,0.01]
[1730660456871,0.8037,2429.2,2428.9,0.00223498]
[1730660457105,5.58653,2429.3,2428.9,0.79203498]
[1730660457260,5.58653,2429.3,2428.9,4.90910498]
[1730660457592,1.47,2429.3,2428.9,4.90902498]
[1730660457801,1.47,2429.3,2429.1,0.00223498]
[1730660458803,1.47,2429.3,2429.1,4.11895498]
[1730660459188,1.47,2429.3,2429.1,0.01223498]
[1730660459496,0.0597526,2429.4,2429.1,0.01223498]
[1730660459497,2.6e-06,2429.4,2429.3,8.47844498]
[1730660459700,0.0597526,2430.6,2430.5,0.00223498]
[1730660460271,0.0597526,2430.6,2430.5,4.11660498]
[1730660460479,0.0597526,2430.6,2430.5,0.00223498]
[1730660461207,0.0597526,2430.6,2430.5,4.11660498]
[1730660462176,0.0597526,2430.6,2430.5,4.12660498]
[1730660463464,4.9756326,2431.8,2431.4,0.00223498]
[1730660463663,4.9756326,2431.8,2430.7,0.01]
[1730660463664,0.49756326,2431.7,2431.6,4.11474498]
[1730660463867,0.0597526,2431.8,2431.6,4.11474498]
[1730660463868,0.0597526,2431.8,2431.6,0.00223498]
[1730660464295,4.11245,2431.7,2431.4,0.00223498]
[1730660464565,0.0597526,2431.8,2431.2,0.01223498]
[1730660464566,4.11288,2431.4,2431.2,0.01223498]
[1730660464866,4.11288,2431.4,2431.2,0.00223498]
[1730660464867,8.22587,2431.4,2431.2,0.00223498]
[1730660465203,4.11288,2431.4,2431.2,0.00223498]
[1730660465404,4.604538,2431.4,2431.2,0.00223498]
[1730660465704,4.11302,2431.3,2431.0,0.00223498]
[1730660465908,4.11302,2431.3,2431.0,0.01223498]
[1730660466204,4.11321,2431.2,2431.0,0.00223498]
[1730660466758,4.11378,2430.9,2430.6,0.00223498]
[1730660466961,0.411378,2430.8,2430.6,0.00223498]
[1730660467267,4.11405,2430.7,2430.4,0.00223498]
[1730660467725,4.11455,2430.4,2430.2,0.00223498]
[1730660467908,4.11493,2430.2,2430.0,0.00223498]
[1730660468205,4.11505,2430.1,2429.8,0.01]
[1730660468365,4.9181,2430.5,2429.7,0.00223498]
[1730660468366,3.0,2430.4,2429.7,0.00223498]
[1730660468568,4.11531,2430.0,2429.7,0.00223498]
[1730660469476,4.11488,2430.2,2429.9,0.00223498]
[1730660469690,8.22989,2430.2,2429.9,0.00223498]
[1730660469894,8.22986,2430.2,2429.9,0.00223498]
[1730660470118,4.11488,2430.2,2429.9,0.00223498]
[1730660470322,8.22986,2430.2,2429.9,0.00223498]
[1730660470491,8.22991,2430.2,2429.9,0.00223498]
[1730660470821,4.11507,2430.1,2429.9,0.00223498]
[1730660471172,4.11522,2430.0,2429.7,0.00223498]
[1730660471377,4.11551,2429.9,2429.7,0.00223498]
[1730660471978,0.38037,2430.3,2429.9,0.00223498]
[1730660472181,4.49524,2430.3,2429.9,0.00223498]
[1730660472385,4.11415,2430.7,2430.1,0.00223498]
[1730660472716,4.11343,2431.1,2429.9,0.01]
[1730660472717,4.11345,2431.1,2430.6,0.00223498]
[1730660472926,4.11345,2431.1,2430.6,0.01223498]
[1730660473221,4.11365,2431.0,2430.6,0.01223498]
[1730660473424,4.11345,2431.1,2430.6,4.12642498]
[1730660473724,4.91683,2431.3,2430.8,0.00223498]
[1730660474120,4.9756526,2431.8,2431.0,0.01223498]
[1730660474250,4.9756526,2431.8,2430.3,3.02]
[1730660474251,4.11254,2431.6,2431.4,0.00223498]
[1730660474444,8.22498,2431.7,2431.4,0.00223498]
[1730660474649,0.8634526,2431.8,2431.2,0.01223498]
[1730660474849,4.11268,2431.5,2431.2,0.01223498]
[1730660475094,4.11244,2431.7,2431.4,0.00223498]
[1730660475261,4.1720026,2431.8,2431.4,0.00223498]
[1730660475463,5.00039886,2431.8,2431.6,0.00223498]
[1730660475882,5.00039886,2431.8,2431.4,0.00223498]
[1730660475883,0.88814886,2431.8,2431.4,0.00223498]
[1730660476200,4.1719626,2431.8,2431.4,0.00223498]
[1730660476493,0.0597526,2431.8,2431.6,0.00223498]
[1730660476860,4.1719326,2431.8,2431.6,0.00223498]
[1730660477194,0.0597526,2431.8,2431.6,0.00223498]
[1730660477555,4.11234,2431.7,2431.6,0.00223498]
[1730660478401,0.0597526,2431.8,2431.6,0.00223498]
[1730660478402,4.1720226,2431.8,2431.6,0.00223498]
[1730660478585,4.11234,2431.7,2431.6,0.00223498]
[1730660478791,8.2843126,2431.8,2431.6,0.00223498]
[1730660479023,4.11234,2431.7,2431.6,0.00223498]
[1730660479184,8.2843126,2431.8,2431.6,0.00223498]
[1730660479391,4.1720226,2431.8,2431.6,0.00223498]
[1730660480399,8.2843026,2431.8,2431.6,0.00223498]
[1730660480629,4.11234,2431.7,2431.6,0.00223498]
[1730660481125,4.1720226,2431.8,2431.6,0.00223498]
[1730660481126,8.2843626,2431.8,2431.6,0.00223498]
[1730660481325,4.11234,2431.7,2431.6,0.00223498]
[1730660482188,4.11268,2431.5,2431.4,0.00223498]
[1730660482384,8.22478,2431.7,2431.4,0.00223498]
[1730660482605,4.11234,2431.7,2431.4,0.00223498]
[1730660483525,4.11252,2431.6,2431.4,0.00223498]
[1730660483727,4.11268,2431.5,2431.4,0.00223498]
[1730660483936,4.11268,2431.5,2431.1,0.7898]
[1730660483937,4.11319,2431.2,2431.1,0.00223498]
[1730660484105,4.11319,2431.2,2430.9,0.01]
[1730660484106,4.11319,2431.2,2430.9,0.01223498]
[1730660484702,4.11338,2431.1,2430.9,0.01223498]
[1730660485594,4.11321,2431.2,2430.9,0.01223498]
[1730660485930,4.11338,2431.1,2430.9,0.01223498]
[1730660486103,4.11353,2431.0,2430.9,0.01]
[1730660486438,4.11353,2431.0,2430.5,0.50223498]
[1730660486439,4.11421,2430.6,2430.5,0.50223498]
[1730660486646,4.11421,2430.6,2430.5,0.5]
[1730660487347,7.11421,2430.6,2430.5,0.5]
[1730660487552,8.237037,2430.6,2430.5,0.5]
[1730660493349,7.237037,2430.6,2430.5,0.5]
[1730660494457,10.93003329,2430.6,2430.5,0.5]
[1730660494637,11.72943329,2430.6,2430.5,0.5]
[1730660497234,11.72943329,2430.6,2429.6,0.8206]
[1730660497235,4.11573,2429.7,2429.6,0.8306]
[1730660497419,4.11573,2429.7,2429.5,0.01]
[1730660497420,4.1159,2429.6,2429.5,0.01]
[1730660497618,4.11609,2429.5,2429.3,0.76253498]
[1730660497814,4.11624,2429.4,2429.1,0.01223498]
[1730660498020,4.11651,2429.3,2429.1,0.01223498]
[1730660498260,4.11658,2429.2,2429.1,0.01223498]
[1730660498424,4.11624,2429.4,2429.1,0.01223498]
[1730660499238,4.11624,2429.4,2429.1,0.00223498]
[1730660499445,4.11642,2429.3,2429.1,0.01223498]
[1730660499756,4.11675,2429.1,2429.0,0.7503]
[1730660500075,4.11658,2429.2,2428.7,1.01223498]
[1730660500076,4.11697,2429.0,2428.7,1.01223498]
[1730660501067,4.11711,2428.9,2428.7,1.01]
[1730660501360,4.11693,2429.0,2428.7,1.01223498]
[1730660502036,8.23369,2429.1,2428.7,1.01223498]
[1730660502246,4.11684,2429.1,2428.7,1.01223498]
[1730660502424,4.11694,2429.0,2428.7,1.01223498]
[1730660503922,4.11684,2429.1,2428.7,1.01223498]
[1730660504122,4.11692,2429.0,2428.7,1.01223498]
[1730660504434,4.11627,2429.4,2429.0,0.00223498]
[1730660504435,4.11632,2429.4,2429.0,0.00223498]
[1730660504621,0.7994,2429.6,2429.0,0.76253498]
[1730660504966,0.07149068,2429.9,2429.2,0.00223498]
[1730660504967,4.11612,2429.5,2429.2,0.00223498]
[1730660505120,4.11591,2429.6,2429.2,0.00223498]
[1730660505462,4.11609,2429.5,2429.2,0.00223498]
[1730660505957,4.11585,2429.7,2429.2,4.12879498]
[1730660506169,4.11585,2429.7,2429.2,4.12870498]
[1730660506324,4.11578,2429.7,2429.2,4.12870498]
[1730660507220,4.1153,2430.0,2429.4,0.01223498]
[1730660507548,3.69299629,2430.1,2429.4,0.01223498]
[1730660507549,4.11518,2430.1,2429.7,0.00223498]
[1730660507748,4.11551,2429.9,2429.7,0.00223498]
[1730660508475,4.11556,2429.8,2429.7,0.00223498]
[1730660508654,4.11556,2429.8,2429.1,4.11663]
[1730660508655,4.11598,2429.6,2429.2,0.76253498]
[1730660508975,4.11607,2429.5,2429.4,0.01]
[1730660509526,4.11575,2429.7,2429.4,0.01]
[1730660509838,4.11601,2429.6,2429.4,0.01]
[1730660510371,0.7994,2429.9,2429.4,0.01223498]
[1730660510528,4.11599,2429.6,2429.4,0.01223498]
[1730660510733,4.11607,2429.5,2429.4,0.00223498]
[1730660510924,4.11607,2429.5,2429.4,0.01223498]
[1730660511327,4.11599,2429.6,2429.4,0.01223498]
[1730660511328,8.23206,2429.6,2429.4,0.01223498]
[1730660511529,4.11599,2429.6,2429.4,0.01223498]
[1730660511770,8.23205,2429.6,2429.4,0.01223498]
[1730660512670,4.11607,2429.5,2429.4,0.01223498]
[1730660512870,4.11599,2429.6,2429.2,0.76253498]
[1730660513043,8.23203,2429.6,2429.2,0.76253498]
[1730660513243,8.23203,2429.6,2429.4,0.01]
[1730660514031,8.23203,2429.6,2429.2,0.76253498]
[1730660514032,4.11599,2429.6,2429.2,0.76253498]
[1730660514233,4.11507,2430.1,2429.6,4.12810498]
[1730660514444,4.11507,2430.1,2429.7,0.8001]
[1730660514753,4.11525,2430.0,2429.7,0.8001]
[1730660515951,4.11507,2430.1,2429.7,0.8001]
[1730660516150,4.11456,2430.4,2430.2,0.01]
[1730660516380,4.11456,2430.4,2430.0,0.01]
[1730660516587,4.11471,2430.3,2430.2,0.01]
[1730660516755,4.1145,2430.5,2430.2,0.01]
[1730660516956,4.11459,2430.4,2430.2,0.01]
[1730660517873,8.22896,2430.5,2430.2,0.01]
[1730660518048,4.11446,2430.5,2430.2,0.01]
[1730660518255,4.12097502,2431.2,2430.1,0.00223498]
[1730660518256,4.1135,2431.1,2430.6,4.11640498]
[1730660518450,4.1132,2431.2,2430.7,4.11403]
[1730660518705,4.94225,2431.3,2430.8,0.80233498]
[1730660518865,4.11355,2431.0,2430.8,0.80233498]
[1730660519060,0.8291,2431.3,2430.5,0.01]
[1730660519061,3.17631578,2431.2,2430.6,0.00223498]
[1730660519264,4.11378,2430.9,2430.6,0.00223498]
[1730660519897,4.1137,2430.9,2430.6,0.00223498]
[1730660520192,4.11387,2430.8,2430.6,0.00223498]
[1730660520363,4.11387,2430.8,2430.5,0.01]
[1730660520364,4.11412,2430.7,2430.5,0.01]
[1730660520581,4.11412,2430.7,2430.2,0.00223498]
[1730660520582,4.11431,2430.6,2430.2,0.00223498]
[1730660520876,4.11431,2430.6,2430.3,0.01]
[1730660521077,4.11443,2430.5,2430.3,0.01]
[1730660521453,4.11398,2430.8,2430.3,4.12462]
[1730660521684,3.0,2430.9,2430.5,0.8001]
[1730660521858,4.11395,2430.8,2430.5,0.8001]
[1730660522254,7.1137,2430.9,2430.5,0.8001]
[1730660522454,0.40054158,2431.1,2430.6,0.00223498]
[1730660522686,3.0,2431.1,2430.7,4.11403]
[1730660522891,0.8291,2431.5,2431.0,0.00223498]
[1730660523092,0.0597526,2431.8,2431.2,0.00223498]
[1730660523093,4.11248,2431.7,2431.2,0.00223498]
[1730660523467,4.11253,2431.6,2431.2,0.00223498]
[1730660523865,4.11248,2431.7,2431.2,4.11539498]
[1730660524232,4.11248,2431.7,2431.2,4.19765116]
[1730660524406,4.11248,2431.7,2431.2,0.00223498]
[1730660524407,4.1128,2431.5,2431.2,0.00223498]
[1730660524896,4.11286,2431.4,2431.2,0.00223498]
[1730660526701,4.11286,2431.4,2430.9,0.01]
[1730660526702,4.11345,2431.1,2430.9,0.01]
[1730660527007,8.22692,2431.1,2430.9,0.01]
[1730660527191,8.22692,2431.1,2430.8,0.76863498]
[1730660527509,4.11345,2431.1,2430.9,0.01]
[1730660527805,4.11345,2431.1,2430.8,0.76863498]
[1730660528008,4.11353,2431.0,2430.9,0.01]
[1730660528164,4.11345,2431.1,2430.9,0.01]
[1730660528708,4.11353,2431.0,2430.9,0.01]
[1730660528865,4.11345,2431.1,2430.9,0.01]
[1730660529199,4.11353,2431.0,2430.9,0.01]
[1730660529360,4.11353,2431.0,2430.8,0.00223498]
[1730660529563,4.11353,2431.0,2430.5,4.88064]
[1730660529564,4.1137,2430.9,2430.6,0.00223498]
[1730660530191,4.936238,2431.0,2430.6,0.00223498]
[1730660530845,4.11378,2430.9,2430.6,0.00223498]
[1730660531447,4.11389,2430.8,2430.6,0.00223498]
[1730660531642,4.936238,2431.0,2430.6,0.00223498]
[1730660531942,4.11358,2431.0,2430.6,0.00223498]
[1730660532841,4.11353,2431.0,2430.6,0.00223498]
[1730660533850,4.11353,2431.0,2430.4,0.00223498]
[1730660533851,4.11421,2430.6,2430.4,0.00223498]
[1730660534042,4.11437,2430.5,2430.2,0.77863498]
[1730660534351,4.11469,2430.4,2430.2,0.77863498]
[1730660534551,4.11466,2430.4,2430.2,0.77863498]
[1730660534905,4.11428,2430.6,2430.2,0.77863498]
[1730660535140,8.22862,2430.6,2430.2,0.77863498]
[1730660535347,4.11438,2430.5,2430.2,0.77863498]
[1730660538555,4.11471,2430.3,2430.2,0.00223498]
[1730660538841,4.11505,2430.1,2430.0,0.01223498]